bitfinex-derivatives/quotes_BNBF0:USTF0_20250309
["timestamp","ask_amount","ask_price","bid_price","bid_amount"]
[1741526073148,0.30137698,577.95,577.26,0.396]
[1741526073944,0.31819234,577.94,577.26,0.396]
[1741526076748,0.31819485,577.93,577.26,0.396]
[1741526076949,0.30137698,577.95,577.26,0.396]
[1741526077848,0.82337698,577.95,577.26,0.396]
[1741526078847,0.522,577.95,577.26,0.396]
[1741526084448,0.522,577.95,577.01,0.30133653]
[1741526084650,0.522,577.95,577.02,0.6372468]
[1741526084847,0.522,577.95,577.03,0.63724079]
[1741526085047,0.522,577.95,577.04,0.29063837]
[1741526087756,0.522,577.95,577.04,0.64563837]
[1741526087956,0.522,577.95,577.05,0.29063837]
[1741526088951,0.522,577.95,577.04,0.355]
[1741526096766,0.31820333,577.94,577.05,0.29066566]
[1741526099968,0.522,577.95,577.06,0.29066566]
[1741526100172,0.522,577.95,577.04,0.29066566]
[1741526100375,0.31820791,577.94,577.04,0.29066566]
[1741526101974,0.3013548,577.93,577.04,0.29066566]
[1741526102373,0.3013548,577.93,577.05,0.29064157]
[1741526102567,0.3013548,577.93,577.04,0.29064157]
[1741526102767,0.522,577.95,577.05,0.29064157]
[1741526102967,0.3182146,577.94,577.06,0.29064157]
[1741526103274,0.61955635,577.94,577.07,0.29064157]
[1741526103473,0.3182146,577.93,577.05,0.29064157]
[1741526105970,0.3182146,578.04,577.05,0.29064157]
[1741526106174,0.61958767,577.92,577.05,0.29064157]
[1741526106476,0.3182146,577.91,577.05,0.29064157]
[1741526106675,0.3182146,578.04,577.04,0.403]
[1741526106875,0.3460028,578.03,577.04,0.403]
[1741526107276,0.64739675,578.03,577.04,0.403]
[1741526108774,0.3460028,578.03,577.04,0.403]
[1741526108971,0.531,578.02,577.04,0.403]
[1741526109171,0.83237568,578.02,577.04,0.403]
[1741526111782,0.531,578.02,577.04,0.403]
[1741526112081,0.30136393,578.01,577.04,0.403]
[1741526114781,0.34602076,578.0,577.04,0.403]
[1741526115179,0.64741862,578.0,577.04,0.403]
[1741526123790,0.34602076,578.0,577.04,0.403]
[1741526124090,0.30137437,577.99,577.04,0.403]
[1741526124484,0.31825037,577.98,577.05,0.29076297]
[1741526127087,0.61958038,577.97,577.05,0.29076297]
[1741526127288,0.31825037,577.96,577.05,0.29076297]
[1741526127485,0.30133001,577.97,577.04,0.403]
[1741526129994,0.34602076,578.0,577.04,0.403]
[1741526130194,0.30135088,577.96,577.04,0.403]
[1741526132797,0.34602076,578.0,577.04,0.403]
[1741526133198,0.30133523,577.95,577.04,0.403]
[1741526134795,0.30133523,577.95,577.05,0.29059995]
[1741526135197,0.72833523,577.95,577.05,0.29059995]
[1741526135796,0.427,577.95,577.05,0.29059995]
[1741526136700,0.427,577.95,577.04,0.403]
[1741526137299,0.427,577.95,577.05,0.29047565]
[1741526140101,0.427,577.95,577.03,0.34660242]
[1741526140102,0.427,577.95,577.04,0.29047565]
[1741526141504,0.427,577.95,577.05,0.34659041]
[1741526141708,0.427,577.95,577.06,0.29047565]
[1741526143199,0.427,577.95,577.06,0.82747565]
[1741526143402,0.427,577.95,577.07,0.29047565]
[1741526144004,0.427,577.95,577.08,0.34657239]
[1741526144304,0.427,577.95,577.09,0.29047565]
[1741526144797,0.427,577.95,577.08,0.34657239]
[1741526145000,0.427,577.95,577.09,0.29047631]
[1741526145199,0.427,577.95,577.1,0.34656038]
[1741526145405,0.427,577.95,577.11,0.29047631]
[1741526147706,0.427,577.95,577.1,0.34656038]
[1741526150913,0.427,577.95,577.11,0.29057561]
[1741526154018,0.427,577.95,577.12,0.34654837]
[1741526154218,0.427,577.95,577.13,0.29057561]
[1741526154418,0.427,577.95,577.14,0.34653636]
[1741526154619,0.427,577.95,577.15,0.29057561]
[1741526154914,0.427,577.95,577.15,0.63710597]
[1741526155119,0.427,577.95,577.16,0.29057561]
[1741526158023,0.427,577.95,577.15,0.34653036]
[1741526158323,0.427,577.95,577.16,0.29047105]
[1741526159417,0.427,577.95,577.16,0.63699541]
[1741526159620,0.427,577.95,577.17,0.29047105]
[1741526159819,0.427,577.95,577.16,0.34652436]
[1741526160022,0.427,577.95,577.17,0.29045058]
[1741526161722,0.427,577.95,577.16,0.34652436]
[1741526172029,0.427,577.95,577.17,0.29070809]
[1741526173224,0.427,577.95,577.16,0.34652436]
[1741526173424,0.427,577.95,577.17,0.29077294]
[1741526173829,0.427,577.95,577.16,0.34652436]
[1741526174024,0.427,577.95,577.17,0.29082754]
[1741526175030,0.427,577.95,577.16,0.34652436]
[1741526175236,0.30134175,577.94,577.16,0.34652436]
[1741526176135,0.31823575,577.93,577.06,0.537]
[1741526176536,0.31823575,577.93,577.07,0.29091438]
[1741526176938,0.31823575,577.93,577.06,0.537]
[1741526177340,0.31823575,577.93,577.07,0.29091725]
[1741526177734,0.31823575,577.93,577.06,0.537]
[1741526178036,0.30138351,577.92,577.07,0.2909116]
[1741526178842,0.501,577.91,577.07,0.2909116]
[1741526180041,0.31823364,577.9,577.07,0.2909116]
[1741526180543,0.31823364,577.9,577.06,0.537]
[1741526180743,0.501,577.91,577.07,0.29091127]
[1741526181242,0.31823328,577.9,577.07,0.29091127]
[1741526182845,0.501,577.91,577.07,0.29091127]
[1741526183444,0.501,577.91,577.06,0.537]
[1741526183644,0.501,577.91,577.08,0.29086795]
[1741526183844,0.501,577.91,577.09,0.29086795]
[1741526184047,0.501,577.91,577.07,0.29086795]
[1741526188657,0.501,577.91,577.08,0.34657239]
[1741526188858,0.501,577.91,577.09,0.29086795]
[1741526189050,0.501,577.91,577.1,0.34656038]
[1741526189252,0.501,577.91,577.11,0.29086795]
[1741526189456,0.501,577.91,577.12,0.34654837]
[1741526189658,0.501,577.91,577.13,0.29086795]
[1741526189855,0.501,577.91,577.13,0.63741032]
[1741526190056,0.501,577.91,577.14,0.29086795]
[1741526190863,0.501,577.91,577.13,0.34654237]
[1741526191062,0.501,577.91,577.14,0.29085683]
[1741526191960,0.501,577.91,577.13,0.34654237]
[1741526192161,0.31821642,577.9,577.13,0.34654237]
[1741526193767,0.31821642,577.9,577.06,0.537]
[1741526194462,0.30144355,577.89,577.06,0.537]
[1741526195865,1.27865714,578.23,577.06,0.537]
[1741526196058,0.31827176,578.22,577.06,0.537]
[1741526196261,0.30143963,577.88,577.06,0.537]
[1741526196460,1.27865714,578.38,577.06,0.537]
[1741526196660,0.31826467,578.37,577.06,0.537]
[1741526198268,0.34581135,578.35,577.06,0.537]
[1741526198566,0.31826467,578.34,577.06,0.537]
[1741526198964,0.476,578.33,577.06,0.537]
[1741526199165,0.31826467,578.32,577.06,0.537]
[1741526199365,0.34584125,578.3,577.06,0.537]
[1741526199667,0.31826467,578.29,577.06,0.537]
[1741526199864,0.3458592,578.27,577.06,0.537]
[1741526200061,0.31826467,578.26,577.06,0.537]
[1741526200265,0.34587714,578.24,577.06,0.537]
[1741526200566,0.31826467,578.23,577.06,0.537]
[1741526200767,0.3458891,578.22,577.06,0.537]
[1741526200966,0.31826467,578.21,577.06,0.537]
[1741526201161,0.34590705,578.19,577.06,0.537]
[1741526201362,0.31826467,578.18,577.06,0.537]
[1741526201565,0.34591902,578.17,577.06,0.537]
[1741526201766,0.31826467,578.16,577.06,0.537]
[1741526201964,0.34593098,578.15,577.06,0.537]
[1741526202167,0.31826467,578.14,577.06,0.537]
[1741526203272,0.34594295,578.13,577.06,0.537]
[1741526203666,0.31826445,578.12,577.06,0.537]
[1741526203871,0.34595492,578.11,577.06,0.537]
[1741526204070,0.31826445,578.1,577.06,0.537]
[1741526204269,0.34596689,578.09,577.06,0.537]
[1741526204470,0.31826445,578.08,577.06,0.537]
[1741526204970,0.34597886,578.07,577.06,0.537]
[1741526205176,0.64739369,578.07,577.06,0.537]
[1741526207867,0.34597886,578.07,577.06,0.537]
[1741526208268,0.30142005,578.06,577.06,0.537]
[1741526208475,0.34599083,578.05,577.06,0.537]
[1741526209269,0.3183145,578.04,577.06,0.537]
[1741526211878,0.66433928,578.03,577.06,0.537]
[1741526212172,0.66434526,578.02,577.06,0.537]
[1741526212376,0.31833648,578.01,577.06,0.537]
[1741526212774,0.34602076,578.0,577.06,0.537]
[1741526212970,0.31833648,577.99,577.06,0.537]
[1741526213375,0.34603273,577.98,577.06,0.537]
[1741526213576,0.31833648,577.97,577.06,0.537]
[1741526213775,0.3460447,577.96,577.06,0.537]
[1741526213972,0.31833648,577.95,577.06,0.537]
[1741526214178,0.34605668,577.94,577.06,0.537]
[1741526214480,0.31833648,577.93,577.06,0.537]
[1741526214672,0.66440408,577.92,577.06,0.537]
[1741526214878,0.31833542,577.91,577.06,0.537]
[1741526216882,0.34608063,577.9,577.06,0.537]
[1741526217083,0.31833542,577.89,577.06,0.537]
[1741526217382,0.31837319,577.88,577.06,0.537]
[1741526217579,0.31837319,577.89,577.06,0.537]
[1741526217881,0.31837319,577.88,577.06,0.537]
[1741526218182,0.31837319,577.89,577.06,0.537]
[1741526218379,0.64756466,577.9,577.06,0.537]
[1741526218580,0.31837352,577.88,577.06,0.537]
[1741526218779,0.31837352,577.87,577.06,0.537]
[1741526218975,0.31837352,577.89,577.06,0.537]
[1741526219181,0.31837352,577.88,577.06,0.537]
[1741526219381,0.31837352,577.89,577.06,0.537]
[1741526220383,0.30150101,577.88,577.06,0.537]
[1741526220583,0.31837352,577.87,577.06,0.537]
[1741526221385,0.31835473,577.86,577.06,0.537]
[1741526221783,0.31835473,577.85,577.06,0.537]
[1741526221980,0.31835473,577.87,577.06,0.537]
[1741526222176,0.31835473,577.86,577.06,0.537]
[1741526222382,0.31835473,577.87,577.06,0.537]
[1741526222583,0.31835473,577.86,577.06,0.537]
[1741526222884,0.31835473,577.85,577.06,0.537]
[1741526223086,0.30150362,577.85,577.06,0.537]
[1741526223286,0.31835473,577.84,577.06,0.537]
[1741526226390,0.61986227,577.83,577.06,0.537]
[1741526226591,0.31835473,577.82,577.06,0.537]
[1741526229185,0.30151015,577.81,577.06,0.537]
[1741526229386,0.31835473,577.8,577.06,0.537]
[1741526230292,0.34614652,577.79,577.06,0.537]
[1741526230586,0.31835473,577.78,577.06,0.537]
[1741526230992,0.3461585,577.77,577.06,0.537]
[1741526231194,0.31835473,577.76,577.06,0.537]
[1741526232088,0.34617048,577.75,577.06,0.537]
[1741526232287,0.31842855,577.74,577.06,0.537]
[1741526234089,0.34618247,577.73,577.06,0.537]
[1741526234396,0.31842855,577.72,577.06,0.537]
[1741526235191,0.30158593,577.71,577.06,0.537]
[1741526235393,0.31842855,577.7,577.06,0.537]
[1741526238199,0.30158854,577.69,577.06,0.537]
[1741526238397,0.31842855,577.68,577.06,0.537]
[1741526240600,0.34621842,577.67,577.06,0.537]
[1741526240805,0.31842855,577.66,577.06,0.537]
[1741526241009,0.34623041,577.65,577.06,0.537]
[1741526241409,0.31842855,577.64,577.06,0.537]
[1741526243009,0.30162514,577.66,577.06,0.537]
[1741526243211,0.3185014,577.63,577.06,0.537]
[1741526243510,0.3185014,577.62,577.06,0.537]
[1741526243705,0.3185014,577.61,577.06,0.537]
[1741526243904,0.3185014,577.6,577.06,0.537]
[1741526244109,0.3185014,577.76,577.06,0.537]
[1741526244304,0.30161991,577.6,577.06,0.537]
[1741526244506,0.3185014,577.59,577.06,0.537]
[1741526244710,0.3185014,577.76,577.06,0.537]
[1741526244906,0.441,577.77,577.06,0.537]
[1741526245106,0.31850314,577.76,577.06,0.537]
[1741526245312,0.30160422,577.75,577.06,0.537]
[1741526245504,0.31850314,577.74,577.06,0.537]
[1741526247209,0.31850314,577.96,577.06,0.537]
[1741526247410,0.30162775,577.73,577.06,0.537]
[1741526247609,0.31850314,577.72,577.06,0.537]
[1741526247809,0.31850314,577.96,577.06,0.537]
[1741526248008,1.27865714,577.9,577.06,0.537]
[1741526248212,0.31850314,577.89,577.06,0.537]
[1741526248423,0.31850314,577.88,577.06,0.537]
[1741526248609,0.31850314,577.87,577.06,0.537]
[1741526248813,0.31850314,577.86,577.06,0.537]
[1741526249011,0.31850314,577.89,577.06,0.537]
[1741526249418,0.38,577.88,577.06,0.537]
[1741526249715,0.31850314,577.87,577.06,0.537]
[1741526250414,0.62012043,577.86,577.06,0.537]
[1741526250616,0.31850314,577.85,577.06,0.537]
[1741526250916,0.30161729,577.86,577.06,0.537]
[1741526250917,0.31850314,577.84,577.06,0.537]
[1741526251118,0.31850314,577.83,577.06,0.537]
[1741526251312,0.31850314,577.82,577.06,0.537]
[1741526251515,0.31850314,577.81,577.06,0.537]
[1741526251712,0.31850314,577.8,577.06,0.537]
[1741526251911,0.31850314,577.79,577.06,0.537]
[1741526252315,0.31850314,577.78,577.06,0.537]
[1741526252518,0.31850314,577.85,577.06,0.537]
[1741526252816,0.31850314,577.84,577.06,0.537]
[1741526253017,0.31850314,577.83,577.06,0.537]
[1741526253313,0.31850314,577.82,577.06,0.537]
[1741526253517,0.31850314,577.85,577.06,0.537]
[1741526254417,0.31850314,577.84,577.06,0.537]
[1741526254616,0.31850314,577.83,577.06,0.537]
[1741526254811,0.31850314,577.82,577.06,0.537]
[1741526255014,0.31850314,577.81,577.06,0.537]
[1741526255215,0.31850314,577.8,577.06,0.537]
[1741526255411,0.31850314,577.79,577.06,0.537]
[1741526255617,0.31850314,577.78,577.06,0.537]
[1741526255817,0.31850314,577.77,577.06,0.537]
[1741526256017,0.31850314,577.76,577.06,0.537]
[1741526256217,0.31850314,577.75,577.06,0.537]
[1741526256417,0.31850314,577.74,577.06,0.537]
[1741526256719,0.31850314,577.73,577.06,0.537]
[1741526257018,0.31850314,577.72,577.06,0.537]
[1741526257218,0.31850314,577.82,577.06,0.537]
[1741526257421,0.31850314,577.81,577.06,0.537]
[1741526257617,0.31850314,577.8,577.06,0.537]
[1741526257819,0.31850314,577.79,577.06,0.537]
[1741526258017,0.31850314,577.78,577.06,0.537]
[1741526258218,0.31850314,577.77,577.06,0.537]
[1741526258517,1.27865714,577.83,577.06,0.537]
[1741526258518,0.31850314,577.76,577.06,0.537]
[1741526258817,0.31850314,577.75,577.06,0.537]
[1741526259017,0.31850314,577.74,577.06,0.537]
[1741526259218,0.31850314,577.73,577.06,0.537]
[1741526259421,0.31850314,577.72,577.06,0.537]
[1741526259620,0.31850314,577.71,577.06,0.537]
[1741526259821,0.31850314,577.7,577.06,0.537]
[1741526260014,0.31850314,577.69,577.06,0.537]
[1741526260217,0.31850314,577.68,577.06,0.537]
[1741526260420,0.31856139,577.67,577.06,0.537]
[1741526260617,0.31856139,577.66,577.06,0.537]
[1741526260922,0.31856139,577.65,577.06,0.537]
[1741526261218,0.31856139,577.64,577.06,0.537]
[1741526261421,0.30163821,577.69,577.06,0.537]
[1741526261621,0.31851778,577.68,577.06,0.537]
[1741526261820,0.31851778,577.67,577.06,0.537]
[1741526262021,0.31851778,577.66,577.06,0.537]
[1741526262217,0.31851778,577.65,577.06,0.537]
[1741526262425,0.31851778,577.66,577.06,0.537]
[1741526262621,0.31851778,577.65,577.06,0.537]
[1741526262819,0.31851778,577.66,577.06,0.537]
[1741526265119,0.31851778,577.71,577.06,0.537]
[1741526265319,0.30162383,577.65,577.06,0.537]
[1741526265526,0.31851778,577.64,577.06,0.537]
[1741526267026,0.31849584,577.63,577.06,0.537]
[1741526267221,0.31849584,577.62,577.06,0.537]
[1741526267429,0.31849584,577.64,577.06,0.537]
[1741526267630,0.31849584,577.63,577.06,0.537]
[1741526267929,0.31849584,577.62,577.06,0.537]
[1741526268129,0.31849584,577.61,577.06,0.537]
[1741526268332,0.31849584,577.64,577.06,0.537]
[1741526268631,0.31849584,577.63,577.06,0.537]
[1741526268826,0.31849584,577.64,577.06,0.537]
[1741526271233,0.30157809,577.63,577.06,0.537]
[1741526271429,0.31849584,577.62,577.06,0.537]
[1741526271927,0.30157809,577.63,577.06,0.537]
[1741526272132,0.31844191,577.62,577.06,0.537]
[1741526274234,0.31844191,577.61,577.06,0.537]
[1741526274435,0.62003829,577.61,577.06,0.537]
[1741526274629,0.83444191,577.6,577.06,0.537]
[1741526274835,0.31844191,577.59,577.06,0.537]
[1741526276236,0.31847507,577.58,577.06,0.537]
[1741526276535,0.31847507,577.59,577.06,0.537]
[1741526276732,0.516,577.6,577.06,0.537]
[1741526277132,0.31847538,577.59,577.06,0.537]
[1741526277436,0.62006653,577.59,577.06,0.537]
[1741526277635,0.31847538,577.58,577.06,0.537]
[1741526278237,0.30159115,577.59,577.06,0.537]
[1741526278659,0.31847716,577.58,577.06,0.537]
[1741526278840,0.30159115,577.59,577.06,0.537]
[1741526279340,0.31847616,577.58,577.06,0.537]
[1741526280041,0.516,577.6,577.06,0.537]
[1741526280241,0.31847175,577.59,577.06,0.537]
[1741526280536,0.30159899,577.57,577.06,0.537]
[1741526283138,0.516,577.6,577.06,0.537]
[1741526283336,0.30157939,577.56,577.06,0.537]
[1741526286037,0.516,577.6,577.06,0.537]
[1741526286240,0.30155849,577.59,577.06,0.537]
[1741526288943,0.516,577.6,577.06,0.537]
[1741526289343,0.30155195,577.59,577.06,0.537]
[1741526291545,1.27865714,578.04,577.06,0.537]
[1741526291846,0.66435497,578.03,577.06,0.537]
[1741526292040,0.66436095,578.02,577.06,0.537]
[1741526292247,0.66436694,578.01,577.06,0.537]
[1741526292440,0.66437293,578.0,577.06,0.537]
[1741526292645,0.66437891,577.99,577.06,0.537]
[1741526292845,0.34603273,577.98,577.06,0.537]
[1741526293049,0.6643849,577.98,577.06,0.537]
[1741526293249,0.31835217,577.97,577.06,0.537]
[1741526293448,0.3460447,577.96,577.06,0.537]
[1741526293751,0.31835217,577.95,577.06,0.537]
[1741526294048,0.66439212,577.94,577.06,0.537]
[1741526294250,0.31833544,577.93,577.06,0.537]
[1741526298155,0.34605668,577.94,577.06,0.537]
[1741526298453,0.31828383,577.93,577.06,0.537]
[1741526299350,0.34605668,577.94,577.06,0.537]
[1741526299549,0.31826861,577.93,577.06,0.537]
[1741526301052,0.34605668,577.94,577.06,0.537]
[1741526301253,0.31827678,577.93,577.06,0.537]
[1741526302349,0.30144225,577.92,577.06,0.537]
[1741526304154,0.34605668,577.94,577.06,0.537]
[1741526304353,0.30140569,577.91,577.06,0.537]
[1741526306955,0.34605668,577.94,577.06,0.537]
[1741526307357,0.30146183,577.93,577.06,0.537]
[1741526309351,0.3182621,577.92,577.06,0.537]
[1741526311951,0.31823557,577.91,577.06,0.537]
[1741526312154,0.31823557,577.92,577.06,0.537]
[1741526312355,0.30146183,577.93,577.06,0.537]
[1741526313360,0.31824857,577.92,577.06,0.537]
[1741526313554,0.30146183,577.93,577.06,0.537]
[1741526313754,0.31825223,577.92,577.06,0.537]
[1741526316161,0.31825223,577.93,577.06,0.537]
[1741526316362,0.30139525,577.91,577.06,0.537]
[1741526317866,0.34605668,577.94,577.06,0.537]
[1741526318362,0.31823457,577.93,577.06,0.537]
[1741526318568,0.34605668,577.94,577.06,0.537]
[1741526318768,0.31824609,577.93,577.06,0.537]
[1741526318968,0.34605668,577.94,577.06,0.537]
[1741526319365,0.30139395,577.92,577.06,0.537]
[1741526320069,0.31827609,577.91,577.06,0.537]
[1741526322267,0.53,577.9,577.06,0.537]
[1741526322569,0.31827609,577.89,577.06,0.537]
[1741526322770,0.53,577.9,577.06,0.537]
[1741526322771,0.31833139,577.88,577.06,0.537]
[1741526322965,0.31833139,577.87,577.06,0.537]
[1741526323272,0.31833139,577.86,577.06,0.537]
[1741526323567,0.53,577.9,577.06,0.537]
[1741526323568,0.31833139,577.85,577.06,0.537]
[1741526323768,0.31833139,577.84,577.06,0.537]
[1741526323972,0.31833139,577.89,577.06,0.537]
[1741526324163,0.31833139,577.88,577.06,0.537]
[1741526324362,0.53,577.9,577.06,0.537]
[1741526324568,0.31834985,577.89,577.06,0.537]
[1741526325273,0.30146575,577.88,577.06,0.537]
[1741526325569,0.31834985,577.87,577.06,0.537]
[1741526328172,0.30142527,577.86,577.06,0.537]
[1741526331075,0.3182737,577.85,577.06,0.537]
[1741526331272,0.30141614,577.85,577.06,0.537]
[1741526331576,0.3182737,577.84,577.06,0.537]
[1741526332076,0.30141614,577.85,577.06,0.537]
[1741526332277,0.31826958,577.84,577.06,0.537]
[1741526333573,0.30141614,577.85,577.06,0.537]
[1741526333774,0.31827788,577.84,577.06,0.537]
[1741526334177,0.31827788,577.89,577.06,0.537]
[1741526334372,0.30141744,577.84,577.06,0.537]
[1741526334572,0.31827788,577.83,577.06,0.537]
[1741526335273,0.30141744,577.84,577.06,0.537]
[1741526335479,0.31827779,577.83,577.06,0.537]
[1741526337380,0.30141614,577.84,577.06,0.537]
[1741526337779,0.31828294,577.83,577.06,0.537]
[1741526338981,0.30141614,577.84,577.06,0.537]
[1741526339187,0.31828136,577.83,577.06,0.537]
[1741526340382,0.69828136,577.83,577.06,0.537]
[1741526340588,0.31828136,577.82,577.06,0.537]
[1741526343192,0.30146314,577.81,577.06,0.537]
[1741526343389,0.31828136,577.8,577.06,0.537]
[1741526343590,0.30146314,577.81,577.06,0.537]
[1741526346092,0.38,577.83,577.06,0.537]
[1741526346392,0.30144747,577.8,577.06,0.537]
[1741526348989,0.38,577.83,577.06,0.537]
[1741526352291,0.61976007,577.82,577.06,0.537]
[1741526352493,0.31831391,577.81,577.06,0.537]
[1741526352789,0.31834374,577.8,577.06,0.537]
[1741526352995,0.31834374,577.81,577.06,0.537]
[1741526353192,0.31834374,577.8,577.06,0.537]
[1741526353391,0.31834374,577.81,577.06,0.537]
[1741526358199,0.31839042,577.8,577.06,0.537]
[1741526358397,0.30150101,577.8,577.06,0.537]
[1741526358696,0.31839042,577.79,577.06,0.537]
[1741526360000,0.34615251,577.78,577.06,0.537]
[1741526360200,0.31845571,577.77,577.06,0.537]
[1741526361400,0.30156763,577.76,577.06,0.537]
[1741526361597,0.31845571,577.75,577.06,0.537]
[1741526362495,0.539,577.74,577.06,0.537]
[1741526362801,0.66463818,577.73,577.06,0.537]
[1741526363002,0.31845571,577.72,577.06,0.537]
[1741526363194,0.34619445,577.71,577.06,0.537]
[1741526363397,0.31845571,577.7,577.06,0.537]
[1741526363600,0.31844659,577.69,577.06,0.537]
[1741526363796,0.31844659,577.7,577.06,0.537]
[1741526364001,0.31844659,577.69,577.06,0.537]
[1741526364200,0.31844659,577.7,577.06,0.537]
[1741526365305,0.30160814,577.69,577.06,0.537]
[1741526365707,0.31844976,577.68,577.06,0.537]
[1741526367102,0.34621842,577.67,577.06,0.537]
[1741526367310,0.31844976,577.66,577.06,0.537]
[1741526367504,0.34623041,577.65,577.06,0.537]
[1741526367708,0.31844976,577.64,577.06,0.537]
[1741526367909,0.3462424,577.63,577.06,0.537]
[1741526368108,0.31844976,577.62,577.06,0.537]
[1741526368303,0.34625439,577.61,577.06,0.537]
[1741526368508,0.31844976,577.6,577.06,0.537]
[1741526368709,0.34626638,577.59,577.06,0.537]
[1741526369009,0.31844976,577.58,577.06,0.537]
[1741526370203,0.30163559,577.57,577.06,0.537]
[1741526370712,0.31844976,577.56,577.06,0.537]
[1741526373407,0.62008797,577.55,577.06,0.537]
[1741526373607,0.31844976,577.54,577.06,0.537]
[1741526374510,0.31853427,577.53,577.06,0.537]
[1741526374705,0.31853427,577.52,577.06,0.537]
[1741526374906,0.31853427,577.54,577.06,0.537]
[1741526376212,0.31853427,577.58,577.06,0.537]
[1741526376407,0.30164082,577.53,577.06,0.537]
[1741526376606,0.31853427,577.52,577.06,0.537]
[1741526378108,0.30164082,577.53,577.06,0.537]
[1741526378311,0.31852509,577.52,577.06,0.537]
[1741526379311,0.62016853,577.51,577.06,0.537]
[1741526379512,0.31852509,577.5,577.06,0.537]
[1741526381808,0.30164344,577.51,577.06,0.537]
[1741526382014,0.31852462,577.5,577.06,0.537]
[1741526382213,0.31852462,577.58,577.06,0.537]
[1741526382512,0.30163559,577.5,577.06,0.537]
[1741526382713,0.31852462,577.58,577.06,0.537]
[1741526382714,0.31852462,577.49,577.06,0.537]
[1741526383013,0.31852462,577.48,577.06,0.537]
[1741526383215,0.31852462,577.58,577.06,0.537]
[1741526383410,0.31852462,577.57,577.06,0.537]
[1741526383611,0.31852462,577.58,577.06,0.537]
[1741526383811,0.30163559,577.57,577.06,0.537]
[1741526384110,0.31852462,577.56,577.06,0.537]
[1741526385211,0.31852462,577.58,577.06,0.537]
[1741526385412,0.6201393,577.55,577.06,0.537]
[1741526385616,0.31852462,577.54,577.06,0.537]
[1741526387918,0.344,577.53,577.06,0.537]
[1741526388117,0.31852462,577.52,577.06,0.537]
[1741526390821,0.344,577.53,577.06,0.537]
[1741526391023,0.3184684,577.52,577.06,0.537]
[1741526392820,0.344,577.53,577.06,0.537]
[1741526393014,0.31844879,577.52,577.06,0.537]
[1741526395325,0.62004909,577.52,577.06,0.537]
[1741526395518,0.31844879,577.51,577.06,0.537]
[1741526397221,0.31844879,577.52,577.06,0.537]
[1741526397424,0.31844879,577.51,577.06,0.537]
[1741526400328,0.62003472,577.52,577.06,0.537]
[1741526400530,0.31844879,577.51,577.06,0.537]
[1741526402331,0.31844879,577.52,577.06,0.537]
[1741526402631,0.31844879,577.51,577.06,0.537]
[1741526402832,0.31844879,577.52,577.06,0.537]
[1741526403034,0.31844879,577.51,577.06,0.537]
[1741526403230,0.31844879,577.52,577.06,0.537]
[1741526403535,0.31844879,577.51,577.06,0.537]
[1741526406338,0.31844879,577.5,577.06,0.537]
[1741526406530,0.3015807,577.52,577.06,0.537]
[1741526406730,0.31844701,577.51,577.06,0.537]
[1741526407732,0.3015807,577.52,577.06,0.537]
[1741526409030,0.344,577.53,577.06,0.537]
[1741526409435,0.30157939,577.52,577.06,0.537]
[1741526412139,0.344,577.53,577.06,0.537]
[1741526412440,0.30160684,577.51,577.06,0.537]
[1741526414033,0.31850112,577.5,577.06,0.537]
[1741526415341,0.62013671,577.49,577.06,0.537]
[1741526415543,0.31850112,577.48,577.06,0.537]
[1741526418349,0.30164082,577.47,577.06,0.537]